Workbook

Sheet по нормативам отдельно
A1: ОУ | B1: Наименование норматива | C1: Ступень (возраст детей) | D1: Кол-во обучающихся основной группы по физической культуре, приступивших к сдаче норматива | G1: Кол-во учащихся основной группы по физической культуре, справившихся с выполнением нормативов в полном объеме | J1: Кол-во учащихся основной группы по физической культуре, справившихся с выполнением нормативов не в полном объеме | M1: Кол-во учащихся основной группы по физической культуре, не справившихся с выполнением нормативов
D2: всего | E2: М | F2: Д | G2: всего | H2: М | I2: Д | J2: всего | K2: М | L2: Д | M2: всего | N2: М | O2: Д
A3: 22 | B3: Челночный бег на 3х10 м (с) | C3: 6-8 лет | D3: =E3+F3 -> 71 | E3: 41 | F3: 30 | G3: =H3+I3 -> 25 | H3: 15 | I3: 10 | J3: =K3+L3 -> 46 | K3: 26 | L3: 20 | M3: =N3+O3 -> 0 | N3: 0 | O3: 0 | P3: =G3+J3+M3 -> 71
B4: или бег на 30м (с) | D4: =E4+F4 -> 0 | G4: =H4+I4 -> 0 | J4: =K4+L4 -> 0 | M4: =N4+O4 -> 0 | P4: =G4+J4+M4 -> 0
B5: Смешанное передвижение (1 км) | D5: =E5+F5 -> 71 | E5: 41 | F5: 30 | G5: =H5+I5 -> 25 | H5: 15 | I5: 10 | J5: =K5+L5 -> 46 | K5: 26 | L5: 20 | M5: =N5+O5 -> 0 | N5: 0 | O5: 0 | P5: 71
B6: Прыжок в длину с места толчками двумя ногами (см) | D6: =E6+F6 -> 71 | E6: 41 | F6: 30 | G6: =H6+I6 -> 25 | H6: 15 | I6: 10 | J6: =K6+L6 -> 46 | K6: 26 | L6: 20 | M6: =N6+O6 -> 0 | N6: 0 | O6: 0 | P6: 71
B7: Плавание без учета времени(м) | D7: 0 | G7: 0 | J7: 0 | M7: 0 | P7: =G7+J7+M7 -> 0
B8: бег на 60м (с) | C8: 9-10 лет | D8: 67 | E8: 35 | F8: 32 | G8: 51 | H8: 29 | I8: 22 | J8: 16 | K8: 6 | L8: 10 | M8: 0 | N8: 0 | O8: 0 | P8: 67
B9: Бег на 1 км. (мин, с) | D9: 67 | E9: 35 | F9: 32 | G9: 51 | H9: 29 | I9: 22 | J9: 16 | K9: 6 | L9: 10 | M9: 0 | P9: 67
B10: Прыжок в длину с разбега (см) | D10: 0 | G10: 0 | J10: 0 | M10: 0 | P10: 0
B11: Или прыжок в длину с места толчком двумя ногами (см) | D11: 67 | E11: 35 | F11: 32 | G11: 51 | H11: 29 | I11: 22 | J11: 16 | K11: 6 | L11: 10 | M11: 0 | N11: 0 | O11: 0 | P11: 67
B12: Плавание без учета времени(м) | D12: 0 | G12: 0 | J12: 0 | M12: 0 | P12: 0
B13: бег на 60м (с) | C13: 11-12 лет | D13: 58 | E13: 37 | F13: 21 | G13: 42 | H13: 25 | I13: 17 | J13: 16 | K13: 12 | L13: 4 | M13: 0 | N13: 0 | O13: 0 | P13: 58
B14: Бег на 1,5 км. (мин, с) | D14: 58 | E14: 37 | F14: 21 | G14: 42 | H14: 25 | I14: 17 | J14: 16 | K14: 12 | L14: 4 | M14: 0 | N14: 0 | O14: 0 | P14: 58
B15: Или на 2 км (мин,с) | D15: 0 | G15: 0 | J15: 0 | M15: 0 | P15: 0
B16: Прыжок в длину с разбега (см) | D16: 0 | G16: 0 | J16: 0 | M16: 0 | P16: 0
B17: Или прыжок в длину с места толчком двумя ногами (см) | D17: 58 | E17: 37 | F17: 21 | G17: 42 | H17: 25 | I17: 17 | J17: 16 | K17: 12 | L17: 4 | M17: 0 | N17: 0 | O17: 0 | P17: 58
B18: Плавание 50 м (мин,с) | D18: 0 | G18: 0 | J18: 0 | M18: 0 | P18: 0
B19: бег на 60м (с) | C19: 13-15 лет | D19: 65 | E19: 39 | F19: 26 | G19: 53 | H19: 31 | I19: 22 | J19: 12 | K19: 8 | L19: 4 | M19: 0 | N19: 0 | O19: 0 | P19: 65
B20: Бег на 2 км. (мин, с) | D20: 65 | E20: 39 | F20: 26 | G20: 53 | H20: 31 | I20: 22 | J20: 12 | K20: 8 | L20: 4 | M20: 0 | N20: 0 | O20: 0 | P20: 65
B21: Или на 3 км (мин,с) девочки нет | D21: 0 | G21: 0 | J21: 0 | M21: 0 | P21: 0
B22: Прыжок в длину с разбега (см) | D22: 0 | G22: 0 | J22: 0 | M22: 0 | P22: 0
B23: Или прыжок в длину с места толчком двумя ногами (см) | D23: 65 | E23: 39 | F23: 26 | G23: 53 | H23: 31 | I23: 22 | J23: 12 | K23: 8 | L23: 4 | M23: 0 | N23: 0 | O23: 0 | P23: 65
B24: Плавание 50 м (мин,с) | D24: 0 | G24: 0 | J24: 0 | M24: 0 | P24: 0
B25: бег на 100м (с) | C25: 16-17 лет | D25: 28 | E25: 18 | F25: 10 | G25: 23 | H25: 16 | I25: 7 | J25: 5 | K25: 2 | L25: 3 | M25: 0 | N25: 0 | O25: 0 | P25: 28
B26: Бег на 2 км. (мин, с) | D26: 28 | E26: 18 | F26: 10 | G26: 23 | H26: 16 | I26: 7 | J26: 5 | K26: 2 | L26: 3 | M26: 0 | N26: 0 | O26: 0 | P26: 28
B27: Или на 3 км (мин,с) девочки нет | D27: 0 | G27: 0 | J27: 0 | M27: 0 | P27: 0
B28: Прыжок в длину с разбега (см) | D28: 0 | G28: 0 | J28: 0 | M28: 0 | P28: 0
B29: Или прыжок в длину с места толчком двумя ногами (см) | D29: 28 | E29: 18 | F29: 10 | G29: 23 | H29: 16 | I29: 7 | J29: 5 | K29: 2 | L29: 3 | M29: 0 | N29: 0 | O29: 0 | P29: 28
B30: Плавание 50 м (мин,с) | D30: 0 | G30: 0 | J30: 0 | M30: 0 | P30: 0
A31: 11 | B31: Челночный бег на 3х10 м (с) | C31: 6-8 лет | D31: =E31+F31 -> 80 | E31: 47 | F31: 33 | G31: =H31+I31 -> 80 | H31: 47 | I31: 33 | J31: =K31+L31 -> 0 | K31: 0 | L31: 0 | M31: =N31+O31 -> 0 | N31: 0 | O31: 0 | P31: 80
B32: или бег на 30м (с) | D32: =E32+F32 -> 0 | G32: =H32+I32 -> 0 | J32: =K32+L32 -> 0 | M32: =N32+O32 -> 0 | P32: 0
B33: Смешанное передвижение (1 км) | D33: =E33+F33 -> 80 | E33: 47 | F33: 33 | G33: =H33+I33 -> 80 | H33: 47 | I33: 33 | J33: =K33+L33 -> 0 | K33: 0 | L33: 0 | M33: =N33+O33 -> 0 | N33: 0 | O33: 0 | P33: 80
B34: Прыжок в длину с места толчками двумя ногами (см) | D34: =E34+F34 -> 0 | G34: =H34+I34 -> 0 | J34: =K34+L34 -> 0 | M34: =N34+O34 -> 0 | P34: 0
B35: Плавание без учета времени(м) | D35: 0 | G35: 0 | J35: 0 | M35: 0 | P35: 0
B36: бег на 60м (с) | C36: 9-10 лет | D36: 78 | E36: 33 | F36: 45 | G36: 78 | H36: 33 | I36: 45 | J36: 0 | K36: 0 | L36: 0 | M36: 0 | N36: 0 | O36: 0 | P36: 78
B37: Бег на 1 км. (мин, с) | D37: 78 | E37: 33 | F37: 45 | G37: 78 | H37: 33 | I37: 45 | J37: 0 | K37: 0 | L37: 0 | M37: 0 | N37: 0 | O37: 0 | P37: 78
B38: Прыжок в длину с разбега (см) | D38: 0 | G38: 0 | J38: 0 | M38: 0 | P38: 0
B39: Или прыжок в длину с места толчком двумя ногами (см) | D39: 0 | G39: 0 | J39: 0 | M39: 0 | P39: 0
B40: Плавание без учета времени(м) | D40: 0 | G40: 0 | J40: 0 | M40: 0 | P40: 0
B41: бег на 60м (с) | C41: 11-12 лет | D41: 76 | E41: 43 | F41: 33 | G41: 76 | H41: 43 | I41: 33 | J41: 0 | L41: 0 | M41: 0 | N41: 0 | O41: 0 | P41: 76
B42: Бег на 1,5 км. (мин, с) | D42: 76 | E42: 43 | F42: 33 | G42: 65 | H42: 38 | I42: 27 | J42: 11 | K42: 5 | L42: 6 | M42: 0 | N42: 0 | O42: 0 | P42: 76
B43: Или на 2 км (мин,с) | D43: 0 | G43: 0 | J43: 0 | M43: 0 | P43: 0
B44: Прыжок в длину с разбега (см) | D44: 0 | G44: 0 | J44: 0 | M44: 0 | P44: 0
B45: Или прыжок в длину с места толчком двумя ногами (см) | D45: 0 | G45: 0 | J45: 0 | M45: 0 | P45: 0
B46: Плавание 50 м (мин,с) | D46: 0 | G46: 0 | J46: 0 | M46: 0 | P46: 0
B47: бег на 60м (с) | C47: 13-15 лет | D47: 56 | E47: 31 | F47: 25 | G47: 56 | H47: 31 | I47: 25 | J47: 0 | K47: 0 | L47: 0 | M47: 0 | N47: 0 | O47: 0 | P47: 56
B48: Бег на 2 км. (мин, с) | D48: 56 | E48: 31 | F48: 25 | G48: 54 | H48: 31 | I48: 23 | J48: 2 | K48: 0 | L48: 2 | M48: 0 | N48: 0 | O48: 0 | P48: 56
B49: Или на 3 км (мин,с) девочки нет | D49: 0 | G49: 0 | J49: 0 | M49: 0 | P49: 0
B50: Прыжок в длину с разбега (см) | D50: 0 | G50: 0 | J50: 0 | M50: 0 | P50: 0
B51: Или прыжок в длину с места толчком двумя ногами (см) | D51: 0 | G51: 0 | J51: 0 | M51: 0 | P51: 0
B52: Плавание 50 м (мин,с) | D52: 0 | G52: 0 | J52: 0 | M52: 0 | P52: 0
B53: бег на 100м (с) | C53: 16-17 лет | D53: 41 | E53: 25 | F53: 16 | G53: 41 | H53: 25 | I53: 16 | J53: 0 | K53: 0 | L53: 0 | M53: 0 | N53: 0 | O53: 0 | P53: 41
B54: Бег на 2 км. (мин, с) | D54: 41 | E54: 25 | F54: 16 | G54: 41 | H54: 25 | I54: 16 | J54: 0 | K54: 0 | L54: 0 | M54: 0 | N54: 0 | O54: 0 | P54: 41
B55: Или на 3 км (мин,с) девочки нет | D55: 0 | G55: 0 | J55: 0 | M55: 0 | P55: 0
B56: Прыжок в длину с разбега (см) | D56: 0 | G56: 0 | J56: 0 | M56: 0 | P56: 0
B57: Или прыжок в длину с места толчком двумя ногами (см) | D57: 0 | G57: 0 | J57: 0 | M57: 0 | P57: 0
B58: Плавание 50 м (мин,с) | D58: 0 | G58: 0 | J58: 0 | M58: 0 | P58: 0
A59: 15 | B59: Челночный бег на 3х10 м (с) | C59: 6-8 лет | D59: =E59+F59 -> 0 | G59: =H59+I59 -> 0 | J59: =K59+L59 -> 0 | M59: =N59+O59 -> 0 | P59: 0
B60: или бег на 30м (с) | D60: =E60+F60 -> 0 | G60: =H60+I60 -> 0 | J60: =K60+L60 -> 0 | M60: =N60+O60 -> 0 | P60: 0
B61: Смешанное передвижение (1 км) | D61: 0 | G61: 0 | J61: 0 | M61: 0 | P61: 0
B62: Прыжок в длину с места толчками двумя ногами (см) | D62: 0 | G62: 0 | J62: 0 | M62: 0 | P62: 0
B63: Плавание без учета времени(м) | D63: 0 | G63: 0 | J63: 0 | M63: 0 | P63: 0
B64: бег на 60м (с) | C64: 9-10 лет | D64: 0 | G64: 0 | J64: 0 | M64: 0 | P64: 0
B65: Бег на 1 км. (мин, с) | D65: 0 | G65: 0 | J65: 0 | M65: 0 | P65: 0
B66: Прыжок в длину с разбега (см) | D66: 0 | G66: 0 | J66: 0 | M66: 0 | P66: 0
B67: Или прыжок в длину с места толчком двумя ногами (см) | D67: 0 | G67: 0 | J67: 0 | M67: 0 | P67: 0
B68: Плавание без учета времени(м) | D68: 0 | G68: 0 | J68: 0 | M68: 0 | P68: =G68+J68+M68 -> 0
B69: бег на 60м (с) | C69: 11-12 лет | D69: 0 | G69: 0 | J69: 0 | M69: 0 | P69: 0
B70: Бег на 1,5 км. (мин, с) | D70: 0 | G70: 0 | J70: 0 | M70: 0 | P70: 0
B71: Или на 2 км (мин,с) | D71: 0 | G71: 0 | J71: 0 | M71: 0 | P71: 0
B72: Прыжок в длину с разбега (см) | D72: 0 | G72: 0 | J72: 0 | M72: 0 | P72: 0
B73: Или прыжок в длину с места толчком двумя ногами (см) | D73: 0 | G73: 0 | J73: 0 | M73: 0 | P73: 0
B74: Плавание 50 м (мин,с) | D74: 0 | G74: 0 | J74: 0 | M74: 0 | P74: 0
B75: бег на 60м (с) | C75: 13-15 лет | D75: 0 | G75: 0 | J75: 0 | M75: 0 | P75: 0
B76: Бег на 2 км. (мин, с) | D76: 0 | G76: 0 | J76: 0 | M76: 0 | P76: 0
B77: Или на 3 км (мин,с) девочки нет | D77: 0 | G77: 0 | J77: 0 | M77: 0 | P77: 0
B78: Прыжок в длину с разбега (см) | D78: 0 | G78: 0 | J78: 0 | M78: 0 | P78: 0
B79: Или прыжок в длину с места толчком двумя ногами (см) | D79: 0 | G79: 0 | J79: 0 | M79: 0 | P79: 0
B80: Плавание 50 м (мин,с) | D80: 0 | G80: 0 | J80: 0 | M80: 0 | P80: 0
B81: бег на 100м (с) | C81: 16-17 лет | D81: 0 | G81: 0 | J81: 0 | M81: 0 | P81: 0
B82: Бег на 2 км. (мин, с) | D82: 0 | G82: 0 | J82: 0 | M82: 0 | P82: 0
B83: Или на 3 км (мин,с) девочки нет | D83: 0 | G83: 0 | J83: 0 | M83: 0 | P83: 0
B84: Прыжок в длину с разбега (см) | D84: 0 | G84: 0 | J84: 0 | M84: 0 | P84: 0
B85: Или прыжок в длину с места толчком двумя ногами (см) | D85: 0 | G85: 0 | J85: 0 | M85: 0 | P85: 0
B86: Плавание 50 м (мин,с) | D86: 0 | G86: 0 | J86: 0 | M86: 0 | P86: 0
A87: 20 | B87: Челночный бег на 3х10 м (с) | C87: 6-8 лет | D87: =E87+F87 -> 0 | G87: =H87+I87 -> 0 | J87: =K87+L87 -> 0 | M87: =N87+O87 -> 0 | P87: 0
B88: или бег на 30м (с) | D88: =E88+F88 -> 0 | G88: =H88+I88 -> 0 | J88: =K88+L88 -> 0 | M88: =N88+O88 -> 0 | P88: 0
B89: Смешанное передвижение (1 км) | D89: 0 | G89: 0 | J89: 0 | M89: 0 | P89: 0
B90: Прыжок в длину с места толчками двумя ногами (см) | D90: 0 | G90: 0 | J90: 0 | M90: 0 | P90: 0
B91: Плавание без учета времени(м) | D91: 0 | G91: 0 | J91: 0 | M91: 0 | P91: 0
B92: бег на 60м (с) | C92: 9-10 лет | D92: 0 | G92: 0 | J92: 0 | M92: 0 | P92: 0
B93: Бег на 1 км. (мин, с) | D93: 0 | G93: 0 | J93: 0 | M93: 0 | P93: 0
B94: Прыжок в длину с разбега (см) | D94: 0 | G94: 0 | J94: 0 | M94: 0 | P94: 0
B95: Или прыжок в длину с места толчком двумя ногами (см) | D95: 0 | G95: 0 | J95: 0 | M95: 0 | P95: 0
B96: Плавание без учета времени(м) | D96: 0 | G96: 0 | J96: 0 | M96: 0 | P96: 0
B97: бег на 60м (с) | C97: 11-12 лет | D97: 0 | G97: 0 | J97: 0 | M97: 0 | P97: 0
B98: Бег на 1,5 км. (мин, с) | D98: 0 | G98: 0 | J98: 0 | M98: 0 | P98: 0
B99: Или на 2 км (мин,с) | D99: 0 | G99: 0 | J99: 0 | M99: 0 | P99: 0
B100: Прыжок в длину с разбега (см) | D100: 0 | G100: 0 | J100: 0 | M100: 0 | P100: 0
B101: Или прыжок в длину с места толчком двумя ногами (см) | D101: 0 | G101: 0 | J101: 0 | M101: 0 | P101: 0
B102: Плавание 50 м (мин,с) | D102: 0 | G102: 0 | J102: 0 | M102: 0 | P102: 0
B103: бег на 60м (с) | C103: 13-15 лет | D103: 0 | G103: 0 | J103: 0 | M103: 0 | P103: 0
B104: Бег на 2 км. (мин, с) | D104: 0 | G104: 0 | J104: 0 | M104: 0 | P104: 0
B105: Или на 3 км (мин,с) девочки нет | D105: 0 | G105: 0 | J105: 0 | M105: 0 | P105: 0
B106: Прыжок в длину с разбега (см) | D106: 0 | G106: 0 | J106: 0 | M106: 0 | P106: 0
B107: Или прыжок в длину с места толчком двумя ногами (см) | D107: 0 | G107: 0 | J107: 0 | M107: 0 | P107: 0
B108: Плавание 50 м (мин,с) | D108: 0 | G108: 0 | J108: 0 | M108: 0 | P108: 0
B109: бег на 100м (с) | C109: 16-17 лет | D109: 0 | G109: 0 | J109: 0 | M109: 0 | P109: 0
B110: Бег на 2 км. (мин, с) | D110: 0 | G110: 0 | J110: 0 | M110: 0 | P110: 0
B111: Или на 3 км (мин,с) девочки нет | D111: 0 | G111: 0 | J111: 0 | M111: 0 | P111: 0
B112: Прыжок в длину с разбега (см) | D112: 0 | G112: 0 | J112: 0 | M112: 0 | P112: 0
B113: Или прыжок в длину с места толчком двумя ногами (см) | D113: 0 | G113: 0 | J113: 0 | M113: 0 | P113: 0
B114: Плавание 50 м (мин,с) | D114: 0 | G114: 0 | J114: 0 | M114: 0 | P114: 0
A115: 8 | B115: Челночный бег на 3х10 м (с) | C115: 6-8 лет | D115: 136 | E115: 88 | F115: 48 | G115: 51 | H115: 31 | I115: 20 | J115: 59 | K115: 33 | L115: 26 | M115: 26 | N115: 20 | O115: 6 | P115: 136
B116: или бег на 30м (с) | D116: 0 | G116: 0 | J116: 0 | M116: 0 | P116: 0
B117: Смешанное передвижение (1 км) | D117: 136 | E117: 88 | F117: 48 | G117: 133 | H117: 85 | I117: 48 | J117: 2 | K117: 1 | L117: 1 | M117: 1 | N117: 1 | O117: 0 | P117: 136
B118: Прыжок в длину с места толчками двумя ногами (см) | D118: 136 | E118: 88 | F118: 48 | G118: 79 | H118: 59 | I118: 20 | J118: 40 | K118: 20 | L118: 20 | M118: 17 | N118: 8 | O118: 9 | P118: 136
B119: Плавание без учета времени(м) | D119: 0 | G119: 0 | J119: 0 | M119: 0 | P119: 0
B120: бег на 60м (с) | C120: 9-10 лет | D120: 160 | E120: 86 | F120: 74 | G120: 67 | H120: 38 | I120: 29 | J120: 60 | K120: 28 | L120: 32 | M120: 33 | N120: 20 | O120: 13 | P120: 160
B121: Бег на 1 км. (мин, с) | D121: 160 | E121: 86 | F121: 74 | G121: 89 | H121: 61 | I121: 28 | J121: 43 | K121: 15 | L121: 28 | M121: 28 | N121: 10 | O121: 18 | P121: 160
B122: Прыжок в длину с разбега (см) | D122: 0 | G122: 0 | J122: 0 | M122: 0 | P122: 0
B123: Или прыжок в длину с места толчком двумя ногами (см) | D123: 160 | E123: 86 | F123: 74 | G123: 68 | H123: 41 | I123: 27 | J123: 60 | K123: 30 | L123: 30 | M123: 32 | N123: 15 | O123: 17 | P123: 160
B124: Плавание без учета времени(м) | D124: 0 | G124: 0 | J124: 0 | M124: 0 | P124: 0
B125: бег на 60м (с) | C125: 11-12 лет | D125: 161 | E125: 83 | F125: 78 | G125: 51 | H125: 29 | I125: 22 | J125: 68 | K125: 31 | L125: 37 | M125: 42 | N125: 23 | O125: 19 | P125: 161
B126: Бег на 1,5 км. (мин, с) | D126: 0 | G126: 0 | J126: 0 | M126: 0 | P126: 0
B127: Или на 2 км (мин,с) | D127: 161 | E127: 83 | F127: 78 | G127: 59 | H127: 28 | I127: 31 | J127: 58 | K127: 29 | L127: 29 | M127: 44 | N127: 26 | O127: 18 | P127: 161
B128: Прыжок в длину с разбега (см) | D128: 0 | G128: 0 | J128: 0 | M128: 0 | P128: 0
B129: Или прыжок в длину с места толчком двумя ногами (см) | D129: 161 | E129: 83 | F129: 78 | G129: 72 | H129: 39 | I129: 33 | J129: 55 | K129: 23 | L129: 32 | M129: 34 | N129: 21 | O129: 13 | P129: 161
B130: Плавание 50 м (мин,с) | D130: 0 | G130: 0 | J130: 0 | M130: 0 | P130: 0
B131: бег на 60м (с) | C131: 13-15 лет | D131: 170 | E131: 90 | F131: 80 | G131: 61 | H131: 32 | I131: 29 | J131: 77 | K131: 45 | L131: 32 | M131: 32 | N131: 13 | O131: 19 | P131: 170
B132: Бег на 2 км. (мин, с) | D132: 170 | E132: 90 | F132: 80 | G132: 76 | H132: 41 | I132: 35 | J132: 63 | K132: 30 | L132: 33 | M132: 31 | N132: 19 | O132: 12 | P132: =G132+J132+M132 -> 170
B133: Или на 3 км (мин,с) девочки нет | D133: 0 | G133: 0 | J133: 0 | M133: 0 | P133: 0
B134: Прыжок в длину с разбега (см) | D134: 0 | G134: 0 | J134: 0 | M134: 0 | P134: 0
B135: Или прыжок в длину с места толчком двумя ногами (см) | D135: 170 | E135: 90 | F135: 80 | G135: 82 | H135: 45 | I135: 37 | J135: 60 | K135: 30 | L135: 30 | M135: 28 | N135: 15 | O135: 13 | P135: 170
B136: Плавание 50 м (мин,с) | D136: 0 | G136: 0 | J136: 0 | M136: 0 | P136: 0
B137: бег на 100м (с) | C137: 16-17 лет | D137: 83 | E137: 35 | F137: 48 | G137: 35 | H137: 15 | I137: 20 | J137: 33 | K137: 15 | L137: 18 | M137: 15 | N137: 5 | O137: 10 | P137: 83
B138: Бег на 2 км. (мин, с) | D138: 83 | E138: 35 | F138: 48 | G138: 36 | H138: 22 | I138: 14 | J138: 31 | K138: 5 | L138: 26 | M138: 16 | N138: 8 | O138: 8 | P138: 83
B139: Или на 3 км (мин,с) девочки нет | D139: 0 | G139: 0 | J139: 0 | M139: 0 | P139: 0
B140: Прыжок в длину с разбега (см) | D140: 0 | G140: 0 | J140: 0 | M140: 0 | P140: 0
B141: Или прыжок в длину с места толчком двумя ногами (см) | D141: 83 | E141: 35 | F141: 48 | G141: 61 | H141: 28 | I141: 33 | J141: 8 | K141: 4 | L141: 4 | M141: 14 | N141: 3 | O141: 11 | P141: 83
B142: Плавание 50 м (мин,с) | D142: 0 | G142: 0 | J142: 0 | M142: 0 | P142: 0
A143: 29 | B143: Челночный бег на 3х10 м (с) | C143: 6-8 лет | D143: =E143+F143 -> 0 | G143: =H143+I143 -> 0 | J143: =K143+L143 -> 0 | M143: =N143+O143 -> 0 | P143: 0
B144: или бег на 30м (с) | D144: =E144+F144 -> 0 | G144: =H144+I144 -> 0 | J144: =K144+L144 -> 0 | M144: =N144+O144 -> 0 | P144: 0
B145: Смешанное передвижение (1 км) | D145: 0 | G145: 0 | J145: 0 | M145: 0 | P145: 0
B146: Прыжок в длину с места толчками двумя ногами (см) | D146: 0 | G146: 0 | J146: 0 | M146: 0 | P146: 0
B147: Плавание без учета времени(м) | D147: 0 | G147: 0 | J147: 0 | M147: 0 | P147: 0
B148: бег на 60м (с) | C148: 9-10 лет | D148: 0 | G148: 0 | J148: 0 | M148: 0 | P148: 0
B149: Бег на 1 км. (мин, с) | D149: 0 | G149: 0 | J149: 0 | M149: 0 | P149: 0
B150: Прыжок в длину с разбега (см) | D150: 0 | G150: 0 | J150: 0 | M150: 0 | P150: 0
B151: Или прыжок в длину с места толчком двумя ногами (см) | D151: 0 | G151: 0 | J151: 0 | M151: 0 | P151: 0
B152: Плавание без учета времени(м) | D152: 0 | G152: 0 | J152: 0 | M152: 0 | P152: 0
B153: бег на 60м (с) | C153: 11-12 лет | D153: 0 | G153: 0 | J153: 0 | M153: 0 | P153: 0
B154: Бег на 1,5 км. (мин, с) | D154: 0 | G154: 0 | J154: 0 | M154: 0 | P154: 0
B155: Или на 2 км (мин,с) | D155: 0 | G155: 0 | J155: 0 | M155: 0 | P155: 0
B156: Прыжок в длину с разбега (см) | D156: 0 | G156: 0 | J156: 0 | M156: 0 | P156: 0
B157: Или прыжок в длину с места толчком двумя ногами (см) | D157: 0 | G157: 0 | J157: 0 | M157: 0 | P157: 0
B158: Плавание 50 м (мин,с) | D158: 0 | G158: 0 | J158: 0 | M158: 0 | P158: 0
B159: бег на 60м (с) | C159: 13-15 лет | D159: 0 | G159: 0 | J159: 0 | M159: 0 | P159: 0
B160: Бег на 2 км. (мин, с) | D160: 0 | G160: 0 | J160: 0 | M160: 0 | P160: 0
B161: Или на 3 км (мин,с) девочки нет | D161: 0 | G161: 0 | J161: 0 | M161: 0 | P161: 0
B162: Прыжок в длину с разбега (см) | D162: 0 | G162: 0 | J162: 0 | M162: 0 | P162: 0
B163: Или прыжок в длину с места толчком двумя ногами (см) | D163: 0 | G163: 0 | J163: 0 | M163: 0 | P163: 0
B164: Плавание 50 м (мин,с) | D164: 0 | G164: 0 | J164: 0 | M164: 0 | P164: 0
B165: бег на 100м (с) | C165: 16-17 лет | D165: 0 | G165: 0 | J165: 0 | M165: 0 | P165: 0
B166: Бег на 2 км. (мин, с) | D166: 0 | G166: 0 | J166: 0 | M166: 0 | P166: 0
B167: Или на 3 км (мин,с) девочки нет | D167: 0 | G167: 0 | J167: 0 | M167: 0 | P167: 0
B168: Прыжок в длину с разбега (см) | D168: 0 | G168: 0 | J168: 0 | M168: 0 | P168: 0
B169: Или прыжок в длину с места толчком двумя ногами (см) | D169: 0 | G169: 0 | J169: 0 | M169: 0 | P169: 0
B170: Плавание 50 м (мин,с) | D170: 0 | G170: 0 | J170: 0 | M170: 0 | P170: 0
A171: 47 | B171: Челночный бег на 3х10 м (с) | C171: 6-8 лет | D171: =E171+F171 -> 78 | E171: 34 | F171: 44 | G171: =H171+I171 -> 67 | H171: 31 | I171: 36 | J171: =K171+L171 -> 7 | K171: 1 | L171: 6 | M171: =N171+O171 -> 4 | N171: 2 | O171: 2 | P171: 78
B172: или бег на 30м (с) | D172: =E172+F172 -> 78 | E172: 34 | F172: 44 | G172: =H172+I172 -> 67 | H172: 31 | I172: 36 | J172: =K172+L172 -> 7 | K172: 1 | L172: 6 | M172: =N172+O172 -> 4 | N172: 2 | O172: 2 | P172: 78
B173: Смешанное передвижение (1 км) | D173: 78 | E173: 34 | F173: 44 | G173: 67 | H173: 31 | I173: 36 | J173: 7 | K173: 1 | L173: 6 | M173: 4 | N173: 2 | O173: 2 | P173: 78
B174: Прыжок в длину с места толчками двумя ногами (см) | D174: 78 | E174: 34 | F174: 44 | G174: 67 | H174: 31 | I174: 36 | J174: 7 | K174: 1 | L174: 6 | M174: 4 | N174: 2 | O174: 2 | P174: 78
B175: Плавание без учета времени(м) | D175: 0 | G175: =H175+I175 -> 0 | J175: =K175+L175 -> 0 | M175: =N175+O175 -> 0 | P175: 0
B176: бег на 60м (с) | C176: 9-10 лет | D176: 65 | E176: 45 | F176: 20 | G176: 57 | H176: 40 | I176: 17 | J176: 4 | K176: 3 | L176: 1 | M176: 4 | N176: 2 | O176: 2 | P176: 65
B177: Бег на 1 км. (мин, с) | D177: 65 | E177: 45 | F177: 20 | G177: =H177+I177 -> 57 | H177: 40 | I177: 17 | J177: =K177+L177 -> 4 | K177: 3 | L177: 1 | M177: =N177+O177 -> 4 | N177: 2 | O177: 2 | P177: 65
B178: Прыжок в длину с разбега (см) | D178: 65 | E178: 45 | F178: 20 | G178: 57 | H178: 40 | I178: 17 | J178: 4 | K178: 3 | L178: 1 | M178: 4 | N178: 2 | O178: 2 | P178: 65
B179: Или прыжок в длину с места толчком двумя ногами (см) | D179: 65 | E179: 45 | F179: 20 | G179: 57 | H179: 40 | I179: 17 | J179: 4 | K179: 3 | L179: 1 | M179: 4 | N179: 2 | O179: 2 | P179: 65
B180: Плавание без учета времени(м) | D180: 0 | G180: 0 | J180: 0 | M180: 0 | P180: 0
B181: бег на 60м (с) | C181: 11-12 лет | D181: 77 | E181: 43 | F181: 34 | G181: 76 | H181: 43 | I181: 33 | J181: 1 | L181: 1 | M181: 0 | P181: 77
B182: Бег на 1,5 км. (мин, с) | D182: 77 | E182: 43 | F182: 34 | G182: 76 | H182: 43 | I182: 33 | J182: 1 | L182: 1 | M182: 0 | P182: 77
B183: Или на 2 км (мин,с) | D183: 0 | G183: 0 | J183: 0 | M183: 0 | P183: 0
B184: Прыжок в длину с разбега (см) | D184: 77 | E184: 43 | F184: 34 | G184: =H184+I184 -> 76 | H184: 43 | I184: 33 | J184: =K184+L184 -> 1 | L184: 1 | M184: 0 | P184: 77
B185: Или прыжок в длину с места толчком двумя ногами (см) | D185: 77 | E185: 43 | F185: 34 | G185: 76 | H185: 43 | I185: 33 | J185: 1 | L185: 1 | M185: 0 | P185: 77
B186: Плавание 50 м (мин,с) | D186: 0 | G186: 0 | J186: 0 | M186: 0 | P186: 0
B187: бег на 60м (с) | C187: 13-15 лет | D187: 98 | E187: 50 | F187: 48 | G187: 93 | H187: 48 | I187: 45 | J187: 5 | K187: 2 | L187: 3 | M187: 0 | P187: 98
B188: Бег на 2 км. (мин, с) | D188: 98 | E188: 50 | F188: 48 | G188: =H188+I188 -> 93 | H188: 48 | I188: 45 | J188: =K188+L188 -> 5 | K188: 2 | L188: 3 | M188: 0 | P188: 98
B189: Или на 3 км (мин,с) девочки нет | D189: 0 | G189: 0 | J189: 0 | M189: 0 | P189: 0
B190: Прыжок в длину с разбега (см) | D190: 98 | E190: 50 | F190: 48 | G190: =H190+I190 -> 93 | H190: 48 | I190: 45 | J190: =K190+L190 -> 5 | K190: 2 | L190: 3 | M190: 0 | P190: 98
B191: Или прыжок в длину с места толчком двумя ногами (см) | D191: 98 | E191: 50 | F191: 48 | G191: 93 | H191: 48 | I191: 45 | J191: 5 | K191: 2 | L191: 3 | M191: 0 | P191: 98
B192: Плавание 50 м (мин,с) | D192: 0 | G192: 0 | J192: 0 | M192: 0 | P192: 0
B193: бег на 100м (с) | C193: 16-17 лет | D193: 30 | E193: 15 | F193: 15 | G193: 30 | H193: 15 | I193: 15 | J193: 0 | M193: 0 | P193: 30
B194: Бег на 2 км. (мин, с) | D194: 30 | E194: 15 | F194: 15 | G194: 30 | H194: 15 | I194: 15 | J194: 0 | M194: 0 | P194: 30
B195: Или на 3 км (мин,с) девочки нет | D195: 0 | G195: 0 | J195: 0 | M195: 0 | P195: 0
B196: Прыжок в длину с разбега (см) | D196: 30 | E196: 15 | F196: 15 | G196: 30 | H196: 15 | I196: 15 | J196: 0 | M196: 0 | P196: =G196+J196+M196 -> 30
B197: Или прыжок в длину с места толчком двумя ногами (см) | D197: 30 | E197: 15 | F197: 15 | G197: 30 | H197: 15 | I197: 15 | J197: 0 | M197: 0 | P197: 30
B198: Плавание 50 м (мин,с) | D198: 0 | G198: 0 | J198: 0 | M198: 0 | P198: 0
A199: 58 | B199: Челночный бег на 3х10 м (с) | C199: 6-8 лет | D199: =E199+F199 -> 36 | E199: 24 | F199: 12 | G199: =H199+I199 -> 36 | H199: 24 | I199: 12 | J199: =K199+L199 -> 0 | M199: =N199+O199 -> 0 | P199: 36
B200: или бег на 30м (с) | D200: =E200+F200 -> 0 | G200: =H200+I200 -> 0 | J200: =K200+L200 -> 0 | M200: =N200+O200 -> 0 | P200: 0
... 810 more rows

Sheet программа по зап.1 и 2 табл
A1: ОУ | B1: Кол-во учащихся по ОШ1 | W1: Кол-во учащихся допущенных к сдаче ГТО | AH1: Кол-во учащихся основной группы по физической культуре, допущенных к сдаче норм ГТО | AK1: Кол-во обучающихся основной группы по физической культуре, приступивших к сдаче нормативов | AN1: Кол-во учащихся основной группы по физической культуре, справившихся с выполнением нормативов в полном объеме | AW1: Кол-во учащихся основной группы по физической культуре, справившихся с выполнением нормативов не в полном объеме | AZ1: Кол-во учащихся основной группы по физической культуре, не справившихся с выполнением нормативов
B2: всего | C2: 6-8 лет | G2: 9-10 лет | K2: 11-12 лет | O2: 13-15 лет | S2: 16-17 лет | W2: всего | X2: 6-8 лет | Z2: 9-10 лет | AB2: 11-12 лет | AD2: 13-15 лет | AF2: 16-17 лет | AH2: всего | AI2: М | AJ2: Д | AK2: всего | AL2: М | AM2: Д | AN2: Бронзовый уровень | AQ2: Серебряный уровень | AT2: Золотой уровень | AW2: всего | AX2: М | AY2: Д | AZ2: всего | BA2: М | BB2: Д
C3: М | D3: Д | E3: проверка | G3: М | H3: Д | I3: проверка | K3: М | L3: Д | M3: проверка | O3: М | P3: Д | Q3: проверка | S3: М | T3: Д | U3: проверка | X3: М | Y3: Д | Z3: М | AA3: Д | AB3: М | AC3: Д | AD3: М | AE3: Д | AF3: М | AG3: Д | AN3: всего | AO3: М | AP3: Д | AQ3: всего | AR3: М | AS3: Д | AT3: всего | AU3: М | AV3: Д | BC3: всего | BD3: м | BE3: д
B4: =C4+D4+G4+H4+K4+L4+O4+P4+S4+T4 -> 0 | E4: =C4+D4 -> 0 | F4: =X4+Y4 -> 0 | I4: =G4+H4 -> 0 | J4: =Z4+AA4 -> 0 | M4: =K4+L4 -> 0 | N4: =AB4+AC4 -> 0 | Q4: =O4+P4 -> 0 | R4: =AD4+AE4 -> 0 | U4: =S4+T4 -> 0 | V4: =AF4+AG4 -> 0 | W4: =X4+Y4+Z4+AA4+AB4+AC4+AD4+AE4+AF4+AG4 -> 0 | AH4: =AI4+AJ4 -> 0 | AI4: =X4+Z4+AB4+AD4+AF4 -> 0 | AJ4: =Y4+AA4+AC4+AE4+AG4 -> 0 | AK4: =AL4+AM4 -> 0 | AN4: =AO4+AP4 -> 0 | AQ4: =AR4+AS4 -> 0 | AT4: =AU4+AV4 -> 0 | AW4: =AX4+AY4 -> 0 | AZ4: =BA4+BB4 -> 0 | BC4: =AN4+AQ4+AT4+AW4+AZ4 -> 0 | BD4: =AO4+AR4+AU4+AX4+BA4 -> 0 | BE4: =AP4+AS4+AV4+AY4+BB4 -> 0
A5: 8 | B5: =C5+D5+G5+H5+K5+L5+O5+P5+S5+T5 -> 913 | C5: 113 | D5: 76 | E5: =C5+D5 -> 189 | F5: =X5+Y5 -> 136 | G5: 108 | H5: 100 | I5: =G5+H5 -> 208 | J5: =Z5+AA5 -> 160 | K5: 95 | L5: 96 | M5: =K5+L5 -> 191 | N5: =AB5+AC5 -> 161 | O5: 107 | P5: 116 | Q5: =O5+P5 -> 223 | R5: =AD5+AE5 -> 170 | S5: 44 | T5: 58 | U5: =S5+T5 -> 102 | V5: =AF5+AG5 -> 83 | W5: =X5+Y5+Z5+AA5+AB5+AC5+AD5+AE5+AF5+AG5 -> 710 | X5: 88 | Y5: 48 | Z5: 86 | AA5: 74 | AB5: 83 | AC5: 78 | AD5: 90 | AE5: 80 | AF5: 35 | AG5: 48 | AH5: =AI5+AJ5 -> 710 | AI5: =X5+Z5+AB5+AD5+AF5 -> 382 | AJ5: 328 | AK5: =AL5+AM5 -> 710 | AL5: 382 | AM5: 328 | AN5: =AO5+AP5 -> 213 | AO5: 123 | AP5: 90 | AQ5: =AR5+AS5 -> 103 | AR5: 65 | AS5: 38 | AT5: =AU5+AV5 -> 24 | AU5: 12 | AV5: 12 | AW5: =AX5+AY5 -> 239 | AX5: 113 | AY5: 126 | AZ5: =BA5+BB5 -> 131 | BA5: 69 | BB5: 62 | BC5: =AN5+AQ5+AT5+AW5+AZ5 -> 710 | BD5: =AO5+AR5+AU5+AX5+BA5 -> 382 | BE5: =AP5+AS5+AV5+AY5+BB5 -> 328
A6: 11 | B6: =C6+D6+G6+H6+K6+L6+O6+P6+S6+T6 -> 382 | C6: 53 | D6: 36 | E6: =C6+D6 -> 89 | F6: =X6+Y6 -> 80 | G6: 38 | H6: 52 | I6: =G6+H6 -> 90 | J6: =Z6+AA6 -> 78 | K6: 48 | L6: 38 | M6: =K6+L6 -> 86 | N6: =AB6+AC6 -> 76 | O6: 37 | P6: 33 | Q6: =O6+P6 -> 70 | R6: =AD6+AE6 -> 56 | S6: 27 | T6: 20 | U6: =S6+T6 -> 47 | V6: =AF6+AG6 -> 41 | W6: =X6+Y6+Z6+AA6+AB6+AC6+AD6+AE6+AF6+AG6 -> 331 | X6: 47 | Y6: 33 | Z6: 33 | AA6: 45 | AB6: 43 | AC6: 33 | AD6: 31 | AE6: 25 | AF6: 25 | AG6: 16 | AH6: =AI6+AJ6 -> 331 | AI6: =X6+Z6+AB6+AD6+AF6 -> 179 | AJ6: =Y6+AA6+AC6+AE6+AG6 -> 152 | AK6: =AL6+AM6 -> 331 | AL6: 179 | AM6: 152 | AN6: =AO6+AP6 -> 109 | AO6: 60 | AP6: 49 | AQ6: =AR6+AS6 -> 208 | AR6: 113 | AS6: 95 | AT6: =AU6+AV6 -> 1 | AU6: 1 | AV6: 0 | AW6: =AX6+AY6 -> 13 | AX6: 5 | AY6: 8 | AZ6: =BA6+BB6 -> 0 | BA6: 0 | BB6: 0 | BC6: =AN6+AQ6+AT6+AW6+AZ6 -> 331 | BD6: =AO6+AR6+AU6+AX6+BA6 -> 179 | BE6: =AP6+AS6+AV6+AY6+BB6 -> 152
A7: 15 | B7: 610 | C7: 95 | D7: 71 | E7: =C7+D7 -> 166 | F7: =X7+Y7 -> 132 | G7: 85 | H7: 47 | I7: =G7+H7 -> 132 | J7: 84 | K7: 58 | L7: 61 | M7: =K7+L7 -> 119 | N7: 86 | O7: 67 | P7: 79 | Q7: =O7+P7 -> 146 | R7: 116 | S7: 26 | T7: 21 | U7: =S7+T7 -> 47 | V7: 19 | W7: 437 | X7: 74 | Y7: 58 | Z7: 52 | AA7: 32 | AB7: 43 | AC7: 43 | AD7: 50 | AE7: 66 | AF7: 9 | AG7: 10 | AH7: =AI7+AJ7 -> 437 | AI7: =X7+Z7+AB7+AD7+AF7 -> 228 | AJ7: =Y7+AA7+AC7+AE7+AG7 -> 209 | AK7: =AL7+AM7 -> 415 | AL7: 220 | AM7: 195 | AN7: =AO7+AP7 -> 145 | AO7: 67 | AP7: 78 | AQ7: =AR7+AS7 -> 131 | AR7: 75 | AS7: 56 | AT7: =AU7+AV7 -> 28 | AU7: 20 | AV7: 8 | AW7: =AX7+AY7 -> 111 | AX7: 58 | AY7: 53 | AZ7: =BA7+BB7 -> 0 | BA7: 0 | BB7: 0 | BC7: 415 | BD7: =AO7+AR7+AU7+AX7+BA7 -> 220 | BE7: =AP7+AS7+AV7+AY7+BB7 -> 195
A8: 20 | B8: 579 | C8: 87 | D8: 83 | E8: 170 | F8: 139 | G8: 87 | H8: 71 | I8: 158 | J8: 89 | K8: 49 | L8: 41 | M8: 90 | N8: 78 | O8: 57 | P8: 59 | Q8: 116 | R8: 92 | S8: 16 | T8: 29 | U8: 45 | V8: 30 | W8: 428 | X8: 69 | Y8: 70 | Z8: 42 | AA8: 47 | AB8: 34 | AC8: 44 | AD8: 47 | AE8: 45 | AF8: 11 | AG8: 19 | AH8: 428 | AI8: 203 | AJ8: 225 | AK8: 455 | AL8: 230 | AM8: 225 | AN8: 124 | AO8: 57 | AP8: 67 | AQ8: =AR8+AS8 -> 186 | AR8: 90 | AS8: 96 | AT8: 111 | AU8: 52 | AV8: 59 | AW8: 7 | AX8: 4 | AY8: 3 | AZ8: 0 | BA8: 0 | BB8: 0 | BC8: 428 | BD8: 203 | BE8: 225
A9: 22 | B9: 474 | C9: 46 | D9: 52 | E9: 98 | F9: 71 | G9: 39 | H9: 49 | I9: 88 | J9: 67 | K9: 53 | L9: 48 | M9: 101 | N9: 58 | O9: 61 | P9: 73 | Q9: 134 | R9: 65 | S9: 25 | T9: 28 | U9: 53 | V9: 28 | W9: 289 | X9: 41 | Y9: 30 | Z9: 35 | AA9: 32 | AB9: 37 | AC9: 21 | AD9: 39 | AE9: 26 | AF9: 18 | AG9: 10 | AH9: 289 | AI9: 170 | AJ9: 119 | AK9: 289 | AL9: 170 | AM9: 119 | AN9: 87 | AO9: 48 | AP9: 39 | AQ9: 51 | AR9: 32 | AS9: 19 | AT9: 56 | AU9: 36 | AV9: 20 | AW9: 95 | AX9: 54 | AY9: 41 | AZ9: 0 | BA9: 0 | BB9: 0 | BC9: 289 | BD9: 170 | BE9: 119
A10: 29 | B10: 96 | C10: 21 | D10: 28 | E10: 49 | F10: 27 | G10: 22 | H10: 22 | I10: 44 | J10: 35 | K10: 2 | L10: 1 | M10: 3 | N10: 2 | O10: 0 | P10: 0 | Q10: 0 | R10: 0 | S10: 0 | T10: 0 | U10: 0 | V10: 0 | W10: 64 | X10: 10 | Y10: 17 | Z10: 14 | AA10: 21 | AB10: 2 | AC10: 0 | AD10: 0 | AE10: 0 | AF10: 0 | AG10: 0 | AH10: 64 | AI10: 26 | AJ10: 38 | AK10: 64 | AL10: 26 | AM10: 38 | AN10: 9 | AO10: 4 | AP10: 5 | AQ10: 15 | AR10: 7 | AS10: 8 | AT10: 8 | AU10: 5 | AV10: 3 | AW10: 28 | AX10: 10 | AY10: 18 | AZ10: 14 | BA10: 6 | BB10: 8 | BC10: 74 | BD10: 32 | BE10: 42
A11: 47 | B11: 372 | C11: 37 | D11: 46 | E11: 83 | F11: 78 | G11: 36 | H11: 33 | I11: 69 | J11: 65 | K11: 44 | L11: 44 | M11: 88 | N11: 77 | O11: 52 | P11: 49 | Q11: 101 | R11: 98 | S11: 16 | T11: 15 | U11: 31 | V11: 30 | W11: 348 | X11: 34 | Y11: 44 | Z11: 45 | AA11: 20 | AB11: 43 | AC11: 34 | AD11: 50 | AE11: 48 | AF11: 15 | AG11: 15 | AH11: 348 | AI11: 187 | AJ11: 161 | AK11: 348 | AL11: 187 | AM11: 161 | AN11: 89 | AO11: 48 | AP11: 41 | AQ11: 126 | AR11: 62 | AS11: 64 | AT11: 108 | AU11: 67 | AV11: 41 | AW11: 17 | AX11: 6 | AY11: 11 | AZ11: 8 | BA11: 4 | BB11: 4 | BC11: 348 | BD11: 187 | BE11: 161
A12: 58 | B12: 296 | C12: 24 | D12: 14 | E12: 38 | F12: 36 | G12: 32 | H12: 13 | I12: 45 | J12: 38 | K12: 41 | L12: 24 | M12: 65 | N12: 49 | O12: 65 | P12: 43 | Q12: 108 | R12: 85 | S12: 19 | T12: 21 | U12: 40 | V12: 27 | W12: 235 | X12: 24 | Y12: 12 | Z12: 25 | AA12: 13 | AB12: 32 | AC12: 17 | AD12: 50 | AE12: 35 | AF12: 12 | AG12: 15 | AH12: 235 | AI12: 143 | AJ12: 92 | AK12: 235 | AL12: 143 | AM12: 92 | AN12: 141 | AO12: 85 | AP12: 56 | AQ12: 70 | AR12: 47 | AS12: 23 | AT12: 3 | AU12: 2 | AV12: 1 | AW12: 0 | AX12: 0 | AY12: 0 | AZ12: 21 | BA12: 9 | BB12: 12 | BC12: 235 | BD12: 143 | BE12: 92
A13: 72 | B13: 873 | C13: 88 | D13: 95 | E13: 183 | F13: 19 | G13: 82 | H13: 85 | I13: 167 | J13: 10 | K13: 100 | L13: 91 | M13: 191 | N13: 9 | O13: 105 | P13: 117 | Q13: 222 | R13: 17 | S13: 42 | T13: 68 | U13: 110 | V13: 4 | W13: 59 | X13: 5 | Y13: 14 | Z13: 4 | AA13: 6 | AB13: 5 | AC13: 4 | AD13: 6 | AE13: 11 | AF13: 0 | AG13: 4 | AH13: 59 | AI13: 20 | AJ13: 39 | AK13: 59 | AL13: 20 | AM13: 39 | AN13: 59 | AO13: 20 | AP13: 39 | AQ13: 0 | AR13: 0 | AS13: 0 | AT13: 0 | AU13: 0 | AV13: 0 | AW13: 0 | AX13: 0 | AY13: 0 | AZ13: 0 | BA13: 0 | BB13: 0 | BC13: 59 | BD13: 20 | BE13: 39
A14: 79 | B14: 439 | C14: 46 | D14: 32 | E14: 78 | F14: 67 | G14: 50 | H14: 44 | I14: 94 | J14: 80 | K14: 54 | L14: 39 | M14: 93 | N14: 59 | O14: 61 | P14: 55 | Q14: 116 | R14: 86 | S14: 28 | T14: 30 | U14: 58 | V14: 42 | W14: 334 | X14: 39 | Y14: 28 | Z14: 44 | AA14: 36 | AB14: 38 | AC14: 21 | AD14: 51 | AE14: 35 | AF14: 15 | AG14: 27 | AH14: 334 | AI14: 187 | AJ14: 147 | AK14: 334 | AL14: 187 | AM14: 147 | AN14: 116 | AO14: 68 | AP14: 48 | AQ14: 52 | AR14: 28 | AS14: 24 | AT14: 20 | AU14: 12 | AV14: 8 | AW14: 88 | AX14: 40 | AY14: 48 | AZ14: 58 | BA14: 26 | BB14: 32 | BC14: 334 | BD14: 174 | BE14: 160 | BF14: ОШИБКИ
A15: 84 | B15: 540 | C15: 44 | D15: 58 | E15: 102 | F15: 96 | G15: 49 | H15: 64 | I15: 113 | J15: 107 | K15: 54 | L15: 74 | M15: 128 | N15: 119 | O15: 69 | P15: 80 | Q15: 149 | R15: 137 | S15: 19 | T15: 29 | U15: 48 | V15: 47 | W15: 506 | X15: 44 | Y15: 52 | Z15: 47 | AA15: 60 | AB15: 51 | AC15: 68 | AD15: 64 | AE15: 73 | AF15: 19 | AG15: 28 | AH15: 506 | AI15: 225 | AJ15: 281 | AK15: 506 | AL15: 225 | AM15: 281 | AN15: 190 | AO15: 77 | AP15: 113 | AQ15: 263 | AR15: 124 | AS15: 139 | AT15: 51 | AU15: 22 | AV15: 29 | AW15: 2 | AX15: 2 | AY15: 0 | AZ15: 0 | BA15: 0 | BB15: 0 | BC15: 506 | BD15: =AO15+AR15+AU15+AX15+BA15 -> 225 | BE15: =AP15+AS15+AV15+AY15+BB15 -> 281
A16: 86 | B16: 0 | E16: 0 | F16: 0 | I16: 0 | J16: 0 | M16: 0 | N16: 0 | Q16: 0 | R16: 0 | U16: 0 | V16: 0 | W16: 0 | AH16: 0 | AI16: 0 | AJ16: 0 | AK16: 0 | AN16: 0 | AQ16: 0 | AT16: 0 | AW16: 0 | AZ16: 0 | BC16: 0 | BD16: =AO16+AR16+AU16+AX16+BA16 -> 0 | BE16: =AP16+AS16+AV16+AY16+BB16 -> 0
A17: 90 | B17: 0 | E17: 0 | F17: 0 | I17: 0 | J17: 0 | M17: 0 | N17: 0 | Q17: 0 | R17: 0 | U17: 0 | V17: 0 | W17: 0 | AH17: 0 | AI17: 0 | AJ17: 0 | AK17: 0 | AN17: 0 | AQ17: 0 | AT17: 0 | AW17: 0 | AZ17: 0 | BC17: 0 | BD17: 0 | BE17: 0
A18: 93 | B18: 0 | E18: 0 | F18: 0 | I18: 0 | J18: 0 | M18: 0 | N18: 0 | Q18: 0 | R18: 0 | U18: 0 | V18: 0 | W18: 0 | AH18: 0 | AI18: 0 | AJ18: 0 | AK18: 0 | AN18: 0 | AQ18: 0 | AT18: 0 | AW18: 0 | AZ18: 0 | BC18: 0 | BD18: 0 | BE18: 0
A19: 101 | B19: 562 | C19: 57 | D19: 64 | E19: 121 | F19: 117 | G19: 69 | H19: 55 | I19: 124 | J19: 119 | K19: 59 | L19: 49 | M19: 108 | N19: 96 | O19: 77 | P19: 72 | Q19: 149 | R19: 117 | S19: 28 | T19: 32 | U19: 60 | V19: 45 | W19: 494 | X19: 54 | Y19: 63 | Z19: 67 | AA19: 52 | AB19: 50 | AC19: 46 | AD19: 63 | AE19: 54 | AF19: 25 | AG19: 20 | AH19: 494 | AI19: 259 | AJ19: 235 | AK19: 494 | AL19: 259 | AM19: 235 | AN19: 179 | AO19: 89 | AP19: 90 | AQ19: 109 | AR19: 65 | AS19: 44 | AT19: 50 | AU19: 30 | AV19: 20 | AW19: 139 | AX19: 70 | AY19: 69 | AZ19: 17 | BA19: 5 | BB19: 12 | BC19: 494 | BD19: 259 | BE19: 235
A20: 108 | B20: 97 | C20: 14 | D20: 11 | E20: 25 | F20: 0 | G20: 15 | H20: 8 | I20: 23 | J20: 0 | K20: 5 | L20: 6 | M20: 11 | N20: 0 | O20: 23 | P20: 15 | Q20: 38 | R20: 0 | S20: 0 | T20: 0 | U20: 0 | V20: 0 | W20: 0 | AH20: 0 | AI20: 0 | AJ20: 0 | AK20: 0 | AN20: 0 | AQ20: 0 | AT20: 0 | AW20: 0 | AZ20: 0 | BC20: 0 | BD20: 0 | BE20: 0
A21: 110 | B21: 578 | C21: 78 | D21: 42 | E21: 120 | F21: 103 | G21: 57 | H21: 43 | I21: 100 | J21: 94 | K21: 54 | L21: 41 | M21: 95 | N21: 93 | O21: 96 | P21: 97 | Q21: 193 | R21: 180 | S21: 35 | T21: 35 | U21: 70 | V21: 53 | W21: 523 | X21: 69 | Y21: 34 | Z21: 54 | AA21: 40 | AB21: 48 | AC21: 45 | AD21: 89 | AE21: 91 | AF21: 31 | AG21: 22 | AH21: 523 | AI21: 291 | AJ21: 232 | AK21: 523 | AL21: 291 | AM21: 232 | AN21: 179 | AO21: 96 | AP21: 83 | AQ21: 181 | AR21: 94 | AS21: 87 | AT21: 114 | AU21: 82 | AV21: 32 | AW21: 40 | AX21: 19 | AY21: 21 | AZ21: 9 | BA21: 0 | BB21: 9 | BC21: 523 | BD21: 291 | BE21: 232
A22: 111 | B22: 656 | C22: 83 | D22: 84 | E22: 167 | F22: 124 | G22: 72 | H22: 53 | I22: 125 | J22: 96 | K22: 73 | L22: 38 | M22: 111 | N22: 41 | O22: 90 | P22: 105 | Q22: 195 | R22: 167 | S22: 37 | T22: 21 | U22: 58 | V22: 51 | W22: 479 | X22: 64 | Y22: 60 | Z22: 58 | AA22: 38 | AB22: 28 | AC22: 13 | AD22: 72 | AE22: 95 | AF22: 32 | AG22: 19 | AH22: 479 | AI22: 254 | AJ22: 225 | AK22: 445 | AL22: 234 | AM22: 211 | AN22: 198 | AO22: 102 | AP22: 96 | AQ22: 105 | AR22: 73 | AS22: 32 | AT22: 44 | AU22: 37 | AV22: 7 | AW22: 98 | AX22: 45 | AY22: 53 | AZ22: 0 | BA22: 0 | BB22: 0 | BC22: 445 | BD22: 257 | BE22: 188
A23: 121 | B23: 0 | E23: 0 | F23: 0 | I23: 0 | J23: 0 | M23: 0 | N23: 0 | Q23: 0 | R23: 0 | U23: 0 | V23: 0 | W23: 0 | AH23: 0 | AI23: 0 | AJ23: 0 | AK23: 0 | AN23: 0 | AQ23: 0 | AT23: 0 | AW23: 0 | AZ23: 0 | BC23: 0 | BD23: 0 | BE23: 0
A24: 124 | B24: 419 | C24: 42 | D24: 54 | E24: 96 | F24: 63 | G24: 46 | H24: 36 | I24: 82 | J24: 67 | K24: 47 | L24: 42 | M24: 89 | N24: 63 | O24: 63 | P24: 58 | Q24: 121 | R24: 84 | S24: 14 | T24: 17 | U24: 31 | V24: 21 | W24: 298 | X24: 30 | Y24: 33 | Z24: 38 | AA24: 29 | AB24: 34 | AC24: 29 | AD24: 44 | AE24: 40 | AF24: 8 | AG24: 13 | AH24: 298 | AI24: 154 | AJ24: 144 | AK24: 276 | AL24: 145 | AM24: 131 | AN24: 44 | AO24: 25 | AP24: 19 | AQ24: 142 | AR24: 72 | AS24: 70 | AT24: 71 | AU24: 38 | AV24: 33 | AW24: 12 | AX24: 7 | AY24: 5 | AZ24: 7 | BA24: 3 | BB24: 4 | BC24: 276 | BD24: 145 | BE24: 131
A25: 125 | B25: 0 | E25: 0 | F25: 0 | I25: 0 | J25: 0 | M25: 0 | N25: 0 | Q25: 0 | R25: 0 | U25: 0 | V25: 0 | W25: 0 | AH25: 0 | AI25: 0 | AJ25: 0 | AK25: 0 | AN25: 0 | AQ25: 0 | AT25: 0 | AW25: 0 | AZ25: 0 | BC25: 0 | BD25: 0 | BE25: 0
A26: 126 | B26: 561 | C26: 66 | D26: 52 | E26: =C26+D26 -> 118 | F26: =X26+Y26 -> 101 | G26: 67 | H26: 56 | I26: =G26+H26 -> 123 | J26: =Z26+AA26 -> 78 | K26: 60 | L26: 62 | M26: 122 | N26: 74 | O26: 62 | P26: 80 | Q26: 142 | R26: 62 | S26: 27 | T26: 29 | U26: 56 | V26: 39 | W26: 354 | X26: 50 | Y26: 51 | Z26: 41 | AA26: 37 | AB26: 31 | AC26: 43 | AD26: 27 | AE26: 35 | AF26: 18 | AG26: 21 | AH26: 354 | AI26: 167 | AJ26: 187 | AK26: 354 | AL26: 167 | AM26: 187 | AN26: 102 | AO26: 60 | AP26: 42 | AQ26: 159 | AR26: 68 | AS26: 91 | AT26: 93 | AU26: 39 | AV26: 54 | AW26: 0 | AX26: 0 | AY26: 0 | AZ26: 0 | BA26: 0 | BB26: 0 | BC26: 354 | BD26: 167 | BE26: 187
A27: 140 | B27: 403 | C27: 43 | D27: 53 | E27: 96 | F27: 54 | G27: 48 | H27: 47 | I27: 95 | J27: 43 | K27: 39 | L27: 41 | M27: 80 | N27: 35 | O27: 24 | P27: 35 | Q27: 59 | R27: 29 | S27: 30 | T27: 43 | U27: 73 | V27: 13 | W27: 174 | X27: 23 | Y27: 31 | Z27: 18 | AA27: 25 | AB27: 17 | AC27: 18 | AD27: 13 | AE27: 16 | AF27: 6 | AG27: 7 | AH27: 174 | AI27: 77 | AJ27: 97 | AK27: 174 | AL27: 77 | AM27: 97 | AN27: 101 | AO27: 48 | AP27: 53 | AQ27: 24 | AR27: 11 | AS27: 13 | AT27: 12 | AU27: 8 | AV27: 4 | AW27: 25 | AX27: 9 | AY27: 16 | AZ27: 12 | BA27: 1 | BB27: 11 | BC27: 174 | BD27: 77 | BE27: 97
A28: 141 | B28: 1032 | C28: 103 | D28: 114 | E28: 217 | F28: 212 | G28: 117 | H28: 126 | I28: 243 | J28: 221 | K28: 104 | L28: 117 | M28: 221 | N28: 192 | O28: 120 | P28: 143 | Q28: 263 | R28: 248 | S28: 45 | T28: 43 | U28: 88 | V28: 79 | W28: 952 | X28: 100 | Y28: 112 | Z28: 99 | AA28: 122 | AB28: 96 | AC28: 96 | AD28: 120 | AE28: 128 | AF28: 43 | AG28: 36 | AH28: 952 | AI28: 458 | AJ28: 494 | AK28: 952 | AL28: 458 | AM28: 494 | AN28: 290 | AO28: 126 | AP28: 164 | AQ28: 595 | AR28: 294 | AS28: 301 | AT28: 50 | AU28: 30 | AV28: 20 | AW28: 17 | AX28: 8 | AY28: 9 | AZ28: 0 | BA28: 0 | BB28: 0 | BC28: 952 | BD28: 458 | BE28: 494
A29: 144 | B29: 1019 | C29: 112 | D29: 116 | E29: 228 | F29: 157 | G29: 101 | H29: 122 | I29: 223 | J29: 130 | K29: 112 | L29: 119 | M29: 231 | N29: 161 | O29: 114 | P29: 125 | Q29: 239 | R29: 140 | S29: 32 | T29: 66 | U29: 98 | V29: 38 | W29: 626 | X29: 80 | Y29: 77 | Z29: 75 | AA29: 55 | AB29: 81 | AC29: 80 | AD29: 75 | AE29: 65 | AF29: 12 | AG29: 26 | AH29: 626 | AI29: 323 | AJ29: 303 | AK29: 626 | AL29: 323 | AM29: 303 | AN29: 163 | AO29: 89 | AP29: 74 | AQ29: 122 | AR29: 72 | AS29: 50 | AT29: 57 | AU29: 31 | AV29: 26 | AW29: 216 | AX29: 95 | AY29: 121 | AZ29: 68 | BA29: 36 | BB29: 32 | BC29: 626 | BD29: 323 | BE29: 303
A30: 149 | B30: 0 | E30: 0 | F30: 0 | I30: 0 | J30: 0 | M30: 0 | N30: 0 | Q30: 0 | R30: 0 | U30: 0 | V30: 0 | W30: 0 | AH30: 0 | AI30: 0 | AJ30: 0 | AK30: 0 | AN30: 0 | AQ30: 0 | AT30: 0 | AW30: 0 | AZ30: 0 | BC30: 0 | BD30: 0 | BE30: 0
A31: 156 | B31: 0 | E31: 0 | F31: 0 | I31: 0 | J31: 0 | M31: 0 | N31: 0 | Q31: 0 | R31: 0 | U31: 0 | V31: 0 | W31: 0 | AH31: 0 | AI31: 0 | AJ31: 0 | AK31: 0 | AN31: 0 | AQ31: 0 | AT31: 0 | AW31: 0 | AZ31: 0 | BC31: 0 | BD31: 0 | BE31: 0
A32: 159 | B32: 0 | E32: 0 | F32: 0 | I32: 0 | J32: 0 | M32: 0 | N32: 0 | Q32: 0 | R32: 0 | U32: 0 | V32: 0 | W32: 0 | AH32: 0 | AI32: 0 | AJ32: 0 | AK32: 0 | AN32: 0 | AQ32: 0 | AT32: 0 | AW32: 0 | AZ32: 0 | BC32: 0 | BD32: 0 | BE32: 0
A33: 161 | B33: 0 | E33: 0 | F33: 0 | I33: 0 | J33: 0 | M33: 0 | N33: 0 | Q33: 0 | R33: 0 | U33: 0 | V33: 0 | W33: 0 | AH33: 0 | AI33: 0 | AJ33: 0 | AK33: 0 | AN33: 0 | AQ33: 0 | AT33: 0 | AW33: 0 | AZ33: 0 | BC33: 0 | BD33: 0 | BE33: 0
A34: 166 | B34: 332 | C34: 38 | D34: 41 | E34: 79 | F34: 65 | G34: 47 | H34: 31 | I34: 78 | J34: 60 | K34: 49 | L34: 40 | M34: 89 | N34: 65 | O34: 39 | P34: 19 | Q34: 58 | R34: 48 | S34: 15 | T34: 13 | U34: 28 | V34: 17 | W34: 255 | X34: 34 | Y34: 31 | Z34: 33 | AA34: 27 | AB34: 41 | AC34: 24 | AD34: 32 | AE34: 16 | AF34: 8 | AG34: 9 | AH34: 255 | AI34: 148 | AJ34: 107 | AK34: 255 | AL34: 148 | AM34: 107 | AN34: 49 | AO34: 30 | AP34: 19 | AQ34: 160 | AR34: 87 | AS34: 73 | AT34: 36 | AU34: 24 | AV34: 12 | AW34: 10 | AX34: 7 | AY34: 3 | AZ34: 0 | BA34: 0 | BB34: 0 | BC34: 255 | BD34: 148 | BE34: 107
A35: 167 | B35: 1180 | C35: 126 | D35: 135 | E35: 261 | F35: 227 | G35: 122 | H35: 142 | I35: 264 | J35: 211 | K35: 113 | L35: 121 | M35: 234 | N35: 205 | O35: 143 | P35: 153 | Q35: 296 | R35: 260 | S35: 60 | T35: 65 | U35: 125 | V35: 109 | W35: 1012 | X35: 104 | Y35: 123 | Z35: 98 | AA35: 113 | AB35: 99 | AC35: 106 | AD35: 135 | AE35: 125 | AF35: 52 | AG35: 57 | AH35: 1012 | AI35: 488 | AJ35: 524 | AK35: 1012 | AL35: 488 | AM35: 524 | AN35: 294 | AO35: 133 | AP35: 161 | AQ35: 373 | AR35: 178 | AS35: 195 | AT35: 210 | AU35: 118 | AV35: 92 | AW35: 101 | AX35: 46 | AY35: 55 | AZ35: 34 | BA35: 13 | BB35: 21 | BC35: 1012 | BD35: 488 | BE35: 524
A36: 169 | B36: 0 | E36: 0 | F36: 0 | I36: 0 | J36: 0 | M36: 0 | N36: 0 | Q36: 0 | R36: 0 | U36: 0 | V36: 0 | W36: 0 | AH36: 0 | AI36: 0 | AJ36: 0 | AK36: 0 | AN36: 0 | AQ36: 0 | AT36: 0 | AW36: 0 | AZ36: 0 | BC36: 0 | BD36: 0 | BE36: 0
A37: 171 | B37: 0 | E37: 0 | F37: 0 | I37: 0 | J37: 0 | M37: 0 | N37: 0 | Q37: 0 | R37: 0 | U37: 0 | V37: 0 | W37: 0 | AH37: 0 | AI37: 0 | AJ37: 0 | AK37: 0 | AN37: 0 | AQ37: 0 | AT37: 0 | AW37: 0 | AZ37: 0 | BC37: 0 | BD37: 0 | BE37: 0
A38: 174 | B38: 962 | C38: 131 | D38: 134 | E38: 265 | F38: 242 | G38: 93 | H38: 99 | I38: 192 | J38: 175 | K38: 112 | L38: 90 | M38: =K38+L38 -> 202 | N38: =AB38+AC38 -> 187 | O38: 111 | P38: 110 | Q38: =O38+P38 -> 221 | R38: =AD38+AE38 -> 198 | S38: 42 | T38: 40 | U38: =S38+T38 -> 82 | V38: =AF38+AG38 -> 69 | W38: =X38+Y38+Z38+AA38+AB38+AC38+AD38+AE38+AF38+AG38 -> 871 | X38: 123 | Y38: 119 | Z38: 83 | AA38: 92 | AB38: 103 | AC38: 84 | AD38: 102 | AE38: 96 | AF38: 38 | AG38: 31 | AH38: =AI38+AJ38 -> 871 | AI38: =X38+Z38+AB38+AD38+AF38 -> 449 | AJ38: =Y38+AA38+AC38+AE38+AG38 -> 422 | AK38: =AL38+AM38 -> 871 | AL38: 449 | AM38: 422 | AN38: 450 | AO38: 211 | AP38: 239 | AQ38: 262 | AR38: 162 | AS38: 100 | AT38: 87 | AU38: 49 | AV38: 38 | AW38: 72 | AX38: 27 | AY38: 45 | AZ38: 0 | BA38: 0 | BC38: =AN38+AQ38+AT38+AW38+AZ38 -> 871 | BD38: =AO38+AR38+AU38+AX38+BA38 -> 449 | BE38: =AP38+AS38+AV38+AY38+BB38 -> 422
A39: 175 | B39: 0 | E39: 0 | F39: 0 | I39: 0 | J39: 0 | M39: 0 | N39: 0 | Q39: 0 | R39: 0 | U39: 0 | V39: 0 | W39: 0 | AH39: 0 | AI39: 0 | AJ39: 0 | AK39: 0 | AN39: 0 | AQ39: 0 | AT39: 0 | AW39: 0 | AZ39: 0 | BC39: 0 | BD39: 0 | BE39: 0
A40: итого | B40: 13375 | C40: =SUM(C5:C39) -> 1547 | D40: 1491 | E40: =C40+D40 -> 3038 | F40: =X40+Y40 -> 2346 | G40: 1482 | H40: 1398 | I40: =G40+H40 -> 2880 | J40: =Z40+AA40 -> 2107 | K40: 1425 | L40: 1323 | M40: =K40+L40 -> 2748 | N40: =AB40+AC40 -> 1986 | O40: 1643 | P40: 1716 | Q40: =O40+P40 -> 3359 | R40: =AD40+AE40 -> 2455 | S40: 627 | T40: 723 | U40: =S40+T40 -> 1350 | V40: =AF40+AG40 -> 885 | W40: =X40+Y40+Z40+AA40+AB40+AC40+AD40+AE40+AF40+AG40 -> 9779 | X40: 1206 | Y40: 1140 | Z40: 1091 | AA40: 1016 | AB40: 1039 | AC40: 947 | AD40: 1250 | AE40: 1205 | AF40: 432 | AG40: 453 | AH40: =AI40+AJ40 -> 9779 | AI40: =X40+Z40+AB40+AD40+AF40 -> 5018 | AJ40: =Y40+AA40+AC40+AE40+AG40 -> 4761 | AK40: =AL40+AM40 -> 9728 | AL40: 5008 | AM40: 4720 | AN40: =AO40+AP40 -> 3331 | AO40: 1666 | AP40: 1665 | AQ40: 3437 | AR40: 1819 | AS40: 1618 | AT40: 1234 | AU40: 715 | AV40: 519 | AW40: 1330 | AX40: 625 | AY40: 705 | AZ40: 379 | BA40: 172 | BB40: 207 | BC40: =AN40+AQ40+AT40+AW40+AZ40 -> 9711 | BD40: =AO40+AR40+AU40+AX40+BA40 -> 4997 | BE40: =AP40+AS40+AV40+AY40+BB40 -> 4714
